fUST/lending_fUST_20240208
["ID","MTS","AMOUNT","RATE_DAILY","PERIOD"]
[313408383,1707323442102,-765.83385745,0.00027945,3]
[313408384,1707323442113,-308.99122062,0.00027945,3]
[313408385,1707323442125,-562.98112702,0.00027945,3]
[313408386,1707323442136,-5634.93379491,0.00027945,3]
[313408387,1707323442146,-500.0,0.00027945,3]
[313408388,1707323442155,-3912.67,0.00027945,3]
[313408389,1707323442164,-500.0,0.00027945,3]
[313408390,1707323442173,-910.66657508,0.00027945,3]
[313408440,1707323443370,-80.49342492,0.00027945,3]
[313408441,1707323443379,-600.59,0.00027945,3]
[313408442,1707323443388,-1226.56,0.00027945,3]
[313408443,1707323443398,-500.0,0.00027945,3]
[313408445,1707323443407,-648.72,0.00027945,3]
[313408447,1707323443417,-240.31293882,0.00027945,3]
[313408449,1707323443430,-645.89453763,0.00027945,3]
[313408463,1707323459843,2802.34,0.0001975,2]
[313408464,1707323484349,1358.70066073,0.0001975,5]
[313408465,1707323496370,1358.70066073,0.0001975,5]
[313408466,1707323516356,1308.02451618,0.0001975,5]
[313408467,1707324479413,2872.7753898,0.00019635,2]
[313408468,1707324536836,432.330515,0.00018882,2]
[313408469,1707324546176,-4179.85662615,0.00019631,2]
[313408470,1707324546195,-214.05113646,0.00019632,2]
[313408471,1707324546216,-980.6631799,0.00019632,2]
[313408472,1707324546234,-154.93802479,0.00019632,2]
[313408473,1707324546253,-3755.69529023,0.00019633,2]
[313408474,1707324546273,-1297.15038027,0.00019633,2]
[313408475,1707324546293,-154.93802479,0.00019633,3]
[313408476,1707324546313,-557.07360906,0.00019634,2]
[313408477,1707324546333,-154.92253873,0.00019634,2]
[313408478,1707324546353,-167.15951964,0.00019634,2]
[313408479,1707324546372,-127.2246102,0.00019635,2]
[313408480,1707324546391,-4799.15277978,0.00020628,2]
[313408481,1707324548139,-13727.85185583,0.00020628,2]
[313408482,1707324549170,-18534.65953135,0.00020628,2]
[313408483,1707324549190,-1745.51182689,0.00020629,2]
[313408484,1707324549210,-1687.90304115,0.0002063,2]
[313408485,1707324549230,-5223.83358614,0.0002063,2]
[313408486,1707324549249,-1201.66555398,0.0002063,2]
[313408487,1707324549269,-155.02790502,0.00020638,2]
[313408488,1707324549289,-261.7382988,0.00020643,2]
[313408489,1707324549309,-398.7102711,0.00020644,2]
[313408490,1707324549329,-155.03255684,0.00021325,2]
[313408491,1707324549349,-169.096112,0.0002134,2]
[313408492,1707324549370,-2556.49,0.00022284,3]
[313408493,1707324549488,-3040.03,0.00022284,3]
[313408494,1707324549512,-4377.64,0.00022294,3]
[313408495,1707324549532,-3648.03,0.00022294,3]
[313408496,1707324549555,-17380.50969796,0.00022304,2]
[313408497,1707324558124,-3776.21227628,0.00022303,2]
[313408498,1707324558146,-7519.49030204,0.00022304,2]
[313408499,1707324558166,-151.55215444,0.00022519,2]
[313408500,1707324558186,-984.89401563,0.00022619,2]
[313408501,1707324558206,-761.55171212,0.0002262,5]
[313408502,1707324558227,-200.0,0.00022697,7]
[313408503,1707324558246,-897.78834,0.00024131,2]
[313408504,1707324558265,-779.34927074,0.0002438,5]
[313408505,1707324558285,-280.0,0.00024966,7]
[313408506,1707324558305,-335.52992191,0.00025,2]
[313408507,1707324558324,-6299.4069347,0.00025,2]
[313408508,1707324558344,-3980.62518534,0.00025134,2]
[313408509,1707324558364,-2616.13972886,0.00025134,2]
[313408510,1707324558383,-741.39467799,0.00025135,2]
[313408511,1707324558404,-18947.68100356,0.00025135,2]
[313408512,1707324558424,-155.57854716,0.00025149,2]
[313408513,1707324558446,-171.34600499,0.00025219,2]
[313408514,1707324558470,-2945.17336773,0.00025351,2]
[313408515,1707324558493,-34250.83538023,0.00025368,2]
[313408516,1707324559095,-1312.10683789,0.00022303,2]
[313408517,1707324559119,-1645.51837662,0.00025368,2]
[313408518,1707324559139,-538.77478549,0.00025571,2]
[313408519,1707324560138,-151.0,0.00022302,4]
[313408520,1707324572727,1176.48,0.000195,2]
[313408521,1707324574091,-179.72011913,0.00022301,2]
[313408522,1707324574113,-3.95351395,0.00022302,4]
[313408523,1707324574133,-156.47463095,0.00022302,2]
[313408524,1707324574153,-951.67903154,0.00022302,2]
[313408525,1707324574173,-214.65255433,0.00022302,2]
[313408526,1707324574193,-167.03141004,0.00025366,2]
[313408527,1707324574213,-1200.7118793,0.00025366,2]
[313408528,1707324574234,-364.67313618,0.00025367,2]
[313408548,1707324632507,-2090.59510347,0.00022302,2]
[313408549,1707324632517,-300.0,0.00022302,2]
[313408550,1707324632526,-154.95351395,0.00024652,4]
[313408551,1707324632536,-109.51578106,0.00025367,2]
[313408553,1707324632547,-30.42416126,0.00025571,2]
[313408555,1707324632556,-5223.83358614,0.00025894,2]
[313408556,1707324632598,-6297.30004496,0.00025895,2]
[313408558,1707324632608,-1761.02181363,0.00025896,2]
[313408560,1707324632617,-1744.17940929,0.00025896,2]
[313408562,1707324632627,-213.85399769,0.00025897,2]
[313408564,1707324632638,-155.01860223,0.00025897,2]
[313408566,1707324632647,-159.59010628,0.00025897,2]
[313408569,1707324632657,-239.5895878,0.00025897,2]
[313408571,1707324632669,-1759.28,0.00027385,3]
[313408573,1707324632681,-2533.36,0.00027386,3]
[313408574,1707324632690,-1085.41784354,0.00027386,3]
[313408577,1707324632708,-1025.71215646,0.00027386,3]
[313408579,1707324632717,-1331.32994601,0.00027392,2]
[313408582,1707324632727,-156.03742073,0.00027393,2]
[313408584,1707324632737,-37006.73396404,0.00027393,2]
[313408586,1707324632746,-5850.72782731,0.00027394,2]
[313408588,1707324632756,-1274.39363593,0.00027394,2]
[313408590,1707324632765,-335.39772833,0.00027394,2]
[313408592,1707324632775,-1000.0,0.00027395,2]
[313408594,1707324632784,-83865.18058421,0.00027396,2]
[313408596,1707324632795,-500.0,0.00027396,2]
[313408598,1707324632804,-632.64922946,0.00027396,2]
[313408600,1707324632813,-500.0,0.00027396,2]
[313408602,1707324632823,-500.0,0.00027396,2]
[313408604,1707324632832,-500.0,0.00027396,2]
[313408606,1707324632842,-500.0,0.00027396,2]
[313408607,1707324632852,-500.0,0.00027396,2]
[313408608,1707324632862,-634.57879879,0.00027396,2]
[313408609,1707324632871,-390.88028813,0.00027396,2]
[313408610,1707324632881,-500.0,0.00027396,2]
[313408611,1707324632890,-607.44059267,0.00027396,2]
[313408612,1707324632899,-500.0,0.00027397,3]
[313408613,1707324632908,-879.57,0.00027397,3]
[313408614,1707324632918,-1065.83,0.00027397,3]
[313408616,1707324632927,-1203.86,0.00027397,3]
[313408618,1707324632937,-500.0,0.00027397,3]
[313408619,1707324632946,-500.0,0.00027397,3]
[313408621,1707324632956,-1255.99,0.00027397,3]
[313408622,1707324632966,-500.0,0.00027397,3]
[313408625,1707324632975,-454.810239,0.00027397,3]
[313408626,1707324632985,-500.0,0.00027397,3]
[313408629,1707324632994,-500.0,0.00027397,2]
[313408630,1707324633003,-500.0,0.00027397,3]
[313408633,1707324633013,-824.94,0.00027397,3]
[313408635,1707324633023,-551.53,0.00027397,3]
[313408637,1707324633032,-514.05731148,0.00027397,3]
[313408639,1707324633042,-663.15,0.00027397,3]
[313408641,1707324633052,-500.0,0.00027397,3]
[313408643,1707324633061,-500.0,0.00027397,3]
[313408645,1707324633070,-500.0,0.00027397,2]
[313408647,1707324633080,-2677.29,0.00027397,3]
[313408649,1707324633089,-500.0,0.00027397,2]
[313408651,1707324633099,-2431.01,0.00027397,3]
[313408653,1707324633108,-311.94,0.00027397,3]
[313408655,1707324633118,-7535.83,0.00027397,3]
[313408657,1707324633127,-3913.65,0.00027397,3]
[313408659,1707324633136,-500.0,0.00027397,3]
[313408660,1707324633146,-3237.01,0.00027397,3]
[313408662,1707324633155,-500.0,0.00027397,3]
[313408664,1707324633165,-500.0,0.00027397,3]
[313408666,1707324633174,-3615.21,0.00027397,3]
[313408668,1707324633183,-958.9,0.00027397,3]
[313408670,1707324633193,-500.0,0.00027397,3]
[313408672,1707324633203,-551.17,0.00027397,3]
[313408674,1707324633212,-1241.12,0.00027397,3]
[313408675,1707324633221,-601.77,0.00027397,3]
[313408677,1707324633231,-1263.28,0.00027397,3]
[313408679,1707324633241,-500.0,0.00027397,3]
[313408681,1707324633250,-500.0,0.00027397,3]
[313408683,1707324633259,-500.0,0.00027397,3]
[313408685,1707324633269,-500.0,0.00027397,3]
[313408687,1707324633279,-812.34,0.00027397,3]
[313408701,1707324633414,-391.0,0.00027463,15]
[313408703,1707324633428,-307.823136,0.000275,13]
[313408705,1707324633437,-155.0,0.00027514,2]
[313408707,1707324633447,-3328.64967646,0.00027664,2]
[313408709,1707324633456,-19120.93202142,0.00027664,2]
[313408710,1707324633465,-500.0,0.00027671,3]
[313408711,1707324633475,-879.57,0.00027671,3]
[313408712,1707324633485,-1065.83,0.00027671,3]
[313408713,1707324633495,-1203.86,0.00027671,3]
[313408714,1707324633504,-500.0,0.00027671,3]
[313408715,1707324633513,-1255.99,0.00027671,3]
[313408716,1707324633522,-500.0,0.00027671,3]
[313408717,1707324633531,-500.0,0.00027671,3]
[313408718,1707324633541,-500.0,0.00027671,2]
[313408719,1707324633551,-500.0,0.00027671,3]
[313408720,1707324633560,-824.94,0.00027671,3]
[313408721,1707324633570,-551.53,0.00027671,3]
[313408722,1707324633579,-663.15,0.00027671,3]
[313408723,1707324633589,-500.0,0.00027671,3]
[313408724,1707324633600,-451.71313205,0.00027671,2]
[313408725,1707324633609,-2677.29,0.00027671,3]
[313408726,1707324633619,-500.0,0.00027671,2]
[313408727,1707324633628,-2431.01,0.00027671,3]
[313408728,1707324633638,-7535.83,0.00027671,3]
[313408729,1707324633647,-3913.65,0.00027671,3]
[313408730,1707324633656,-500.0,0.00027671,3]
[313408731,1707324633666,-3237.01,0.00027671,3]
[313408732,1707324633677,-500.0,0.00027671,3]
[313408733,1707324633687,-500.0,0.00027671,3]
[313408734,1707324633696,-3615.21,0.00027671,3]
[313408735,1707324633705,-958.9,0.00027671,3]
[313408736,1707324633715,-500.0,0.00027671,3]
[313408737,1707324633724,-551.17,0.00027671,3]
[313408738,1707324633734,-1241.12,0.00027671,3]
[313408739,1707324633744,-601.77,0.00027671,3]
[313408740,1707324633753,-1263.28,0.00027671,3]
[313408741,1707324633763,-500.0,0.00027671,3]
[313408742,1707324633772,-500.0,0.00027671,3]
[313408743,1707324633782,-500.0,0.00027671,3]
[313408744,1707324633791,-500.0,0.00027671,3]
[313408745,1707324633801,-207.7673499,0.00027671,2]
[313408746,1707324633810,-153.0,0.00027671,2]
[313408747,1707324633819,-153.0,0.00027671,2]
[313408748,1707324633829,-153.0,0.00027671,2]
[313408749,1707324633838,-155.87818742,0.00027943,2]
[313408750,1707324633848,-639.85213328,0.00027943,2]
[313408751,1707324633856,-717.73938521,0.00027943,2]
[313408752,1707324633866,-330.23570657,0.00027944,2]
[313408753,1707324633875,-155.43781289,0.00027944,2]
[313408754,1707324633884,-500.0,0.00027945,3]
[313408755,1707324633894,-879.57,0.00027945,3]
[313408756,1707324633903,-1065.83,0.00027945,3]
[313408757,1707324633912,-1203.86,0.00027945,3]
[313408758,1707324633921,-500.0,0.00027945,3]
[313408759,1707324633930,-1255.99,0.00027945,3]
[313408760,1707324633940,-500.0,0.00027945,3]
[313408761,1707324633950,-500.0,0.00027945,3]
[313408762,1707324633959,-824.94,0.00027945,3]
[313408763,1707324633968,-151.0,0.00027945,2]
[313408764,1707324633977,-551.53,0.00027945,3]
[313408765,1707324633986,-663.15,0.00027945,3]
[313408766,1707324633996,-500.0,0.00027945,3]
[313408767,1707324634005,-151.0,0.00027945,2]
[313408768,1707324634014,-151.0,0.00027945,2]
[313408769,1707324634023,-2677.29,0.00027945,3]
[313408770,1707324634033,-500.0,0.00027945,2]
[313408771,1707324634042,-2431.01,0.00027945,3]
[313408772,1707324634052,-7535.83,0.00027945,3]
[313408773,1707324634061,-3913.65,0.00027945,3]
[313408774,1707324634070,-500.0,0.00027945,3]
[313408775,1707324634079,-3237.01,0.00027945,3]
[313408776,1707324634088,-500.0,0.00027945,3]
[313408777,1707324634098,-500.0,0.00027945,3]
[313408778,1707324634107,-3615.21,0.00027945,3]
[313408779,1707324634116,-958.9,0.00027945,3]
[313408780,1707324634126,-500.0,0.00027945,3]
[313408781,1707324634135,-551.17,0.00027945,3]
[313408782,1707324634144,-1241.12,0.00027945,3]
[313408783,1707324634153,-601.77,0.00027945,3]
[313408784,1707324634162,-1263.28,0.00027945,3]
[313408785,1707324634171,-500.0,0.00027945,3]
[313408786,1707324634180,-500.0,0.00027945,3]
[313408787,1707324634189,-500.0,0.00027945,3]
[313408788,1707324634199,-500.0,0.00027945,3]
[313408789,1707324634208,-306.0,0.00027945,2]
[313408790,1707324634217,-301.51548225,0.00027998,2]
[313408791,1707324634226,-80078.0,0.00028,2]
[313408792,1707324634235,-154.90705577,0.00028,2]
[313408793,1707324634244,-1716.49476713,0.00028,2]
[313408794,1707324634253,-151.0,0.00028,2]
[313408795,1707324634262,-151.0,0.00028,2]
[313408796,1707324634271,-151.0,0.00028,2]
[313408797,1707324634280,-1334.0,0.00028,4]
[313408798,1707324634289,-151.0,0.00028,2]
[313408799,1707324634298,-442982.19571655,0.000282,3]
[313408800,1707324634307,-500.0,0.00028219,3]
[313408801,1707324634317,-879.57,0.00028219,3]
[313408802,1707324634326,-1065.83,0.00028219,3]
[313408803,1707324634335,-1203.86,0.00028219,3]
[313408804,1707324634344,-500.0,0.00028219,3]
[313408805,1707324634353,-1255.99,0.00028219,3]
[313408806,1707324634362,-500.0,0.00028219,3]
[313408807,1707324634373,-500.0,0.00028219,3]
[313408808,1707324634383,-824.94,0.00028219,3]
[313408809,1707324634391,-551.53,0.00028219,3]
[313408810,1707324634400,-663.15,0.00028219,3]
[313408811,1707324634409,-500.0,0.00028219,3]
[313408812,1707324634418,-2677.29,0.00028219,3]
[313408813,1707324634427,-423.28377858,0.00028219,2]
[313408814,1707324634436,-2431.01,0.00028219,3]
[313408815,1707324634445,-7535.83,0.00028219,3]
[313408816,1707324634454,-3913.65,0.00028219,3]
[313408817,1707324634463,-500.0,0.00028219,3]
[313408818,1707324634472,-3237.01,0.00028219,3]
[313408819,1707324634481,-500.0,0.00028219,3]
[313408820,1707324634490,-500.0,0.00028219,3]
[313408821,1707324634499,-3615.21,0.00028219,3]
[313408822,1707324634508,-958.9,0.00028219,3]
[313408823,1707324634517,-500.0,0.00028219,3]
[313408824,1707324634526,-551.17,0.00028219,3]
[313408825,1707324634535,-1241.12,0.00028219,3]
[313408826,1707324634545,-601.77,0.00028219,3]
[313408827,1707324634554,-1263.28,0.00028219,3]
[313408828,1707324634563,-500.0,0.00028219,3]
[313408829,1707324634572,-500.0,0.00028219,3]
[313408830,1707324634581,-500.0,0.00028219,3]
[313408831,1707324634591,-500.0,0.00028219,3]
[313408832,1707324634600,-395.0,0.000283,2]
[313408833,1707324634609,-432.330515,0.00028324,2]
[313408834,1707324634618,-500.0,0.00028493,3]
[313408835,1707324634627,-879.57,0.00028493,3]
[313408836,1707324634636,-1065.83,0.00028493,3]
[313408837,1707324634646,-245.0,0.00028493,2]
[313408838,1707324634655,-1203.86,0.00028493,3]
[313408839,1707324634667,-500.0,0.00028493,3]
[313408840,1707324634676,-1255.99,0.00028493,3]
[313408841,1707324634685,-500.0,0.00028493,3]
[313408842,1707324634695,-500.0,0.00028493,3]
[313408843,1707324634704,-824.94,0.00028493,3]
[313408844,1707324634713,-551.53,0.00028493,3]
[313408845,1707324634722,-663.15,0.00028493,3]
[313408846,1707324634731,-500.0,0.00028493,3]
[313408847,1707324634741,-151.0,0.00028493,2]
[313408848,1707324634750,-2677.29,0.00028493,3]
[313408849,1707324634759,-2431.01,0.00028493,3]
[313408850,1707324634768,-7535.83,0.00028493,3]
[313408851,1707324634777,-3913.65,0.00028493,3]
[313408852,1707324634786,-500.0,0.00028493,3]
[313408853,1707324634796,-3237.01,0.00028493,3]
[313408854,1707324634805,-500.0,0.00028493,3]
[313408855,1707324634814,-500.0,0.00028493,3]
[313408856,1707324634823,-3615.21,0.00028493,3]
[313408857,1707324634832,-958.9,0.00028493,3]
[313408858,1707324634841,-500.0,0.00028493,3]
[313408859,1707324634850,-551.17,0.00028493,3]
[313408860,1707324634859,-1241.12,0.00028493,3]
[313408861,1707324634868,-601.77,0.00028493,3]
[313408862,1707324634877,-1263.28,0.00028493,3]
[313408863,1707324634886,-500.0,0.00028493,3]
[313408864,1707324634895,-151.0,0.00028493,2]
[313408865,1707324634904,-500.0,0.00028493,3]
[313408866,1707324634914,-500.0,0.00028493,3]
[313408867,1707324634923,-500.0,0.00028493,3]
[313408868,1707324634932,-197.2351802,0.00028493,2]
[313408869,1707324634941,-153.0,0.00028493,2]
[313408870,1707324634950,-199.9099361,0.00028493,2]
[313408871,1707324634959,-310.5348743,0.00028493,2]
[313408872,1707324634969,-199.9099361,0.00028493,2]
[313408873,1707324634977,-199.6696295,0.00028493,2]
[313408874,1707324634986,-154.000139,0.00028493,2]
[313408875,1707324634996,-153.9082875,0.00028493,2]
[313408876,1707324635005,-2000.0,0.000285,2]
[313408877,1707324635014,-2000.0,0.0002851,2]
[313408878,1707324635023,-360.60507902,0.00028512,2]
[313408879,1707324635033,-591.46387587,0.00028512,2]
[313408880,1707324635042,-463.19152753,0.00028512,2]
[313408881,1707324635052,-508.19790538,0.00028512,2]
[313408882,1707324635061,-155.0356582,0.00028512,2]
[313408883,1707324635071,-2093.55473299,0.00028513,5]
[313408884,1707324635080,-500.0,0.00028513,2]
[313408885,1707324635090,-500.0,0.00028513,2]
[313408886,1707324635099,-587.99886627,0.00028513,2]
[313408887,1707324635108,-500.0,0.00028513,2]
[313408888,1707324635118,-261.00636243,0.00028513,2]
[313408889,1707324635127,-500.0,0.00028513,2]
[313408890,1707324635136,-500.0,0.00028513,2]
[313408891,1707324635145,-511.39920552,0.00028513,2]
[313408892,1707324635154,-290.34638367,0.00028513,2]
[313408893,1707324635164,-500.0,0.00028513,2]
[313408894,1707324635173,-207.75598962,0.00028513,2]
[313408895,1707324635183,-500.0,0.00028513,2]
[313408896,1707324635193,-500.0,0.00028513,2]
[313408897,1707324635203,-500.0,0.00028513,2]
[313408898,1707324635212,-500.0,0.00028513,2]
[313408899,1707324635222,-49906.841184,0.00028514,5]
[313408900,1707324635231,-151.0,0.00028514,2]
[313408901,1707324635240,-2000.0,0.0002852,2]
[313408902,1707324635250,-151.0,0.0002852,2]
[313408903,1707324635259,-2000.0,0.0002853,2]
[313408904,1707324635269,-3850.0,0.0002854,2]
[313408905,1707324635278,-244.26799306,0.00028666,2]
[313408906,1707324635288,-500.0,0.00028767,3]
[313408907,1707324635297,-879.57,0.00028767,3]
[313408908,1707324635306,-1065.83,0.00028767,3]
[313408909,1707324635316,-1203.86,0.00028767,3]
[313408910,1707324635325,-500.0,0.00028767,3]
[313408911,1707324635334,-1255.99,0.00028767,3]
[313408912,1707324635344,-500.0,0.00028767,3]
[313408913,1707324635354,-500.0,0.00028767,3]
[313408914,1707324635364,-824.94,0.00028767,3]
[313408915,1707324635373,-551.53,0.00028767,3]
[313408916,1707324635382,-663.15,0.00028767,3]
[313408917,1707324635392,-500.0,0.00028767,3]
[313408918,1707324635401,-2677.29,0.00028767,3]
[313408919,1707324635410,-2431.01,0.00028767,3]
[313408920,1707324635420,-7535.83,0.00028767,3]
[313408921,1707324635429,-3913.65,0.00028767,3]
[313408922,1707324635438,-500.0,0.00028767,3]
[313408923,1707324635447,-3237.01,0.00028767,3]
[313408924,1707324635456,-349.82573214,0.00028767,3]
[313408925,1707324635466,-500.0,0.00028767,3]
[313408926,1707324635475,-3615.21,0.00028767,3]
[313408927,1707324635484,-958.9,0.00028767,3]
[313408928,1707324635493,-500.0,0.00028767,3]
[313408929,1707324635502,-551.17,0.00028767,3]
[313408930,1707324635511,-1241.12,0.00028767,3]
[313408931,1707324635521,-601.77,0.00028767,3]
[313408932,1707324635530,-1263.28,0.00028767,3]
[313408933,1707324635539,-500.0,0.00028767,3]
[313408934,1707324635550,-500.0,0.00028767,3]
[313408935,1707324635560,-500.0,0.00028767,3]
[313408936,1707324635569,-500.0,0.00028767,3]
[313408937,1707324635579,-2000.0,0.00028868,2]
[313408938,1707324635589,-2000.0,0.00028868,2]
[313408939,1707324635605,-154.93802479,0.00029,2]
[313408940,1707324635614,-459.60686937,0.00029,3]
[313408941,1707324635624,-183.31759979,0.00029,10]
[313408942,1707324635634,-1000.0,0.00029,29]
[313408943,1707324635728,-1333.0,0.00029,4]
[313408944,1707324635738,-500.0,0.00029041,3]
[313408945,1707324635747,-879.57,0.00029041,3]
[313408946,1707324635757,-1065.83,0.00029041,3]
[313408947,1707324635767,-1203.86,0.00029041,3]
[313408948,1707324635777,-500.0,0.00029041,3]
[313408949,1707324635786,-1255.99,0.00029041,3]
[313408950,1707324635796,-500.0,0.00029041,3]
[313408951,1707324635805,-500.0,0.00029041,3]
[313408952,1707324635815,-824.94,0.00029041,3]
[313408953,1707324635824,-551.53,0.00029041,3]
[313408954,1707324635834,-500.0,0.00029041,3]
[313408955,1707324635843,-663.15,0.00029041,3]
[313408956,1707324635852,-151.0,0.00029041,2]
[313408957,1707324635861,-2677.29,0.00029041,3]
[313408958,1707324635870,-2431.01,0.00029041,3]
[313408959,1707324635879,-7535.83,0.00029041,3]
[313408960,1707324635888,-3913.65,0.00029041,3]
[313408961,1707324635897,-594.08902643,0.00029041,3]
[313408962,1707324635907,-3237.01,0.00029041,3]
[313408963,1707324635916,-500.0,0.00029041,3]
[313408964,1707324635925,-3615.21,0.00029041,3]
[313408965,1707324635934,-958.9,0.00029041,3]
[313408966,1707324635943,-552.79407266,0.00029041,3]
[313408967,1707324635953,-551.17,0.00029041,3]
[313408968,1707324635962,-1241.12,0.00029041,3]
[313408969,1707324635971,-601.77,0.00029041,3]
[313408970,1707324635981,-1263.28,0.00029041,3]
[313408971,1707324635990,-500.0,0.00029041,3]
[313408972,1707324636000,-151.0,0.00029041,2]
[313408973,1707324636009,-500.0,0.00029041,3]
[313408974,1707324636018,-500.0,0.00029041,3]
[313408975,1707324636027,-500.0,0.00029041,3]
[313408976,1707324636037,-851.94785031,0.00029163,2]
[313408977,1707324636050,-620.01159664,0.00029296,2]
[313408978,1707324636059,-500.0,0.00029315,3]
[313408979,1707324636068,-879.57,0.00029315,3]
[313408980,1707324636077,-1065.83,0.00029315,3]
[313408981,1707324636086,-1203.86,0.00029315,3]
[313408982,1707324636095,-500.0,0.00029315,3]
[313408983,1707324636104,-1255.99,0.00029315,3]
[313408984,1707324636114,-500.0,0.00029315,3]
[313408985,1707324636123,-500.0,0.00029315,3]
[313408986,1707324636132,-824.94,0.00029315,3]
[313408987,1707324636141,-551.53,0.00029315,3]
[313408988,1707324636151,-500.0,0.00029315,3]
[313408989,1707324636160,-663.15,0.00029315,3]
[313408990,1707324636169,-2677.29,0.00029315,3]
[313408991,1707324636178,-2431.01,0.00029315,3]
[313408992,1707324636188,-7535.83,0.00029315,3]
[313408993,1707324636198,-3913.65,0.00029315,3]
[313408994,1707324636207,-3237.01,0.00029315,3]
[313408995,1707324636216,-500.0,0.00029315,3]
[313408996,1707324636225,-3615.21,0.00029315,3]
[313408997,1707324636234,-958.9,0.00029315,3]
[313408998,1707324636243,-551.17,0.00029315,3]
[313408999,1707324636253,-1241.12,0.00029315,3]
[313409000,1707324636262,-601.77,0.00029315,3]
[313409001,1707324636271,-1263.28,0.00029315,3]
[313409002,1707324636280,-500.0,0.00029315,3]
[313409003,1707324636289,-500.0,0.00029315,3]
[313409004,1707324636299,-500.0,0.00029315,3]
[313409005,1707324636308,-500.0,0.00029315,3]
[313409006,1707324636317,-151.0,0.00029348,2]
[313409007,1707324636326,-500.0,0.00029589,3]
[313409008,1707324636335,-879.57,0.00029589,3]
[313409009,1707324636345,-1065.83,0.00029589,3]
[313409010,1707324636354,-1203.86,0.00029589,3]
[313409011,1707324636363,-500.0,0.00029589,3]
[313409012,1707324636372,-1255.99,0.00029589,3]
[313409013,1707324636382,-500.0,0.00029589,3]
[313409014,1707324636392,-500.0,0.00029589,3]
[313409015,1707324636401,-824.94,0.00029589,3]
[313409016,1707324636410,-551.53,0.00029589,3]
[313409017,1707324636419,-500.0,0.00029589,3]
[313409018,1707324636428,-663.15,0.00029589,3]
[313409019,1707324636437,-151.0,0.00029589,2]
[313409020,1707324636446,-2677.29,0.00029589,3]
[313409021,1707324636455,-2431.01,0.00029589,3]
[313409022,1707324636465,-7535.83,0.00029589,3]
[313409023,1707324636475,-3913.65,0.00029589,3]
[313409024,1707324636485,-3237.01,0.00029589,3]
[313409025,1707324636497,-500.0,0.00029589,3]
[313409026,1707324636506,-3615.21,0.00029589,3]
[313409027,1707324636517,-958.9,0.00029589,3]
[313409028,1707324636526,-551.17,0.00029589,3]
[313409029,1707324636536,-1241.12,0.00029589,3]
[313409030,1707324636547,-601.77,0.00029589,3]
[313409031,1707324636558,-1263.28,0.00029589,3]
[313409032,1707324636570,-500.0,0.00029589,3]
[313409033,1707324636580,-151.0,0.00029589,2]
[313409034,1707324636591,-500.0,0.00029589,3]
[313409035,1707324636603,-500.0,0.00029589,3]
[313409036,1707324636613,-500.0,0.00029589,3]
[313409037,1707324636623,-500.0,0.000298,2]
[313409038,1707324636633,-155.61385592,0.00029859,2]
[313409039,1707324636643,-1583.44473922,0.00029859,2]
[313409040,1707324636653,-155.01860223,0.0002986,2]
[313409041,1707324636662,-200.99449137,0.00029861,2]
[313409042,1707324636672,-176.70010518,0.00029861,2]
[313409043,1707324636683,-154.93802479,0.00029863,2]
[313409044,1707324636693,-500.0,0.00029863,3]
[313409045,1707324636703,-879.57,0.00029863,3]
[313409046,1707324636712,-1065.83,0.00029863,3]